bitfinex/quotes_BTCUSD_20250105
["timestamp","ask_amount","ask_price","bid_price","bid_amount"]
[1736108330425,0.789779,98582.0,98581.0,0.10398632]
[1736108330624,0.789779,98582.0,98581.0,0.11186632]
[1736108330853,0.60719,98582.0,98581.0,0.11186632]
[1736108331054,0.50719,98582.0,98581.0,0.11186632]
[1736108331254,0.50719,98582.0,98581.0,0.11260665]
[1736108331507,0.50719,98582.0,98581.0,0.11186632]
[1736108333185,0.50719,98582.0,98581.0,0.51163185]
[1736108333412,0.50719,98582.0,98581.0,0.56797532]
[1736108333601,0.50719,98582.0,98581.0,0.57818471]
[1736108334044,0.50719,98582.0,98581.0,0.45709271]
[1736108334246,0.50719,98582.0,98581.0,0.10398632]
[1736108334451,0.50719,98582.0,98581.0,0.11186632]
[1736108335014,0.50169,98582.0,98581.0,0.11186632]
[1736108335762,0.50169,98582.0,98581.0,1.02638132]
[1736108336088,0.481402,98582.0,98581.0,1.00036532]
[1736108336292,0.40025,98582.0,98581.0,1.00036532]
[1736108336553,0.40025,98582.0,98581.0,0.36186632]
[1736108336756,0.29881,98582.0,98581.0,0.36186632]
[1736108336956,0.29881,98582.0,98581.0,1.23017332]
[1736108337590,0.20672815,98582.0,98581.0,1.29135332]
[1736108337791,0.11687015,98582.0,98581.0,1.44156105]
[1736108338005,0.07629815,98582.0,98581.0,1.33426105]
[1736108338328,0.01115842,98582.0,98581.0,1.44156105]
[1736108338543,0.00155455,98582.0,98581.0,1.44156105]
[1736108338744,8.51e-05,98589.0,98588.0,0.701058]
[1736108338745,6.5e-07,98589.0,98588.0,0.701058]
[1736108338941,6.5e-07,98589.0,98588.0,0.9584529]
[1736108339990,6.5e-07,98589.0,98588.0,0.8584529]
[1736108340193,6.5e-07,98589.0,98588.0,0.9569129]
[1736108340404,6.5e-07,98589.0,98588.0,1.0259729]
[1736108340615,6.5e-07,98589.0,98588.0,1.03590617]
[1736108340818,0.1,98658.0,98637.0,0.17795858]
[1736108341031,0.60686,98658.0,98651.0,0.10398632]
[1736108341254,0.03151775,98657.0,98651.0,0.10398632]
[1736108341454,0.53837775,98657.0,98652.0,0.00824]
[1736108341666,0.49783375,98657.0,98656.0,0.10398632]
[1736108341874,0.52936731,98657.0,98656.0,0.26362632]
[1736108342077,0.45728975,98657.0,98656.0,0.26411841]
[1736108342294,0.000101,98671.0,98668.0,0.282429]
[1736108342501,0.000101,98671.0,98668.0,0.38641532]
[1736108342711,0.5068351,98669.0,98668.0,0.39465532]
[1736108342963,0.000101,98671.0,98668.0,1.34675632]
[1736108343169,0.174325,98671.0,98670.0,0.10398632]
[1736108343391,0.03626667,98714.0,98687.0,0.1]
[1736108343671,0.03626667,98714.0,98687.0,0.21303652]
[1736108343879,0.5067351,98688.0,98687.0,0.49462032]
[1736108344092,0.5067351,98688.0,98687.0,0.28638032]
[1736108344304,0.55747651,98688.0,98687.0,0.11222632]
[1736108344521,0.5067351,98688.0,98687.0,0.60398632]
[1736108344728,0.53825674,98688.0,98687.0,0.5539979]
[1736108345183,0.53825674,98688.0,98687.0,0.5639179]
[1736108345817,0.53825674,98688.0,98687.0,0.6143979]
[1736108346782,0.5067351,98688.0,98687.0,0.6143979]
[1736108346989,0.53825293,98688.0,98687.0,0.6143979]
[1736108347201,0.53825293,98688.0,98687.0,0.11439841]
[1736108347450,0.5067351,98688.0,98687.0,0.11439841]
[1736108347874,0.5067351,98688.0,98687.0,0.10447841]
[1736108348086,0.6067351,98688.0,98687.0,0.10447841]
[1736108348294,0.6067351,98688.0,98687.0,0.11439841]
[1736108348963,0.6067351,98688.0,98687.0,0.10447841]
[1736108349180,0.182412,98678.0,98655.0,0.0010133]
[1736108349423,0.1,98671.0,98664.0,0.10364044]
[1736108349848,0.60665,98671.0,98664.0,0.10364044]
[1736108350291,0.60665,98671.0,98665.0,0.00992]
[1736108350506,0.60665,98671.0,98666.0,0.11390632]
[1736108350715,0.60665,98671.0,98669.0,0.03]
[1736108350918,0.60665,98671.0,98670.0,0.10398632]
[1736108351767,0.60665,98671.0,98670.0,0.11390632]
[1736108352813,0.60665,98671.0,98670.0,0.10398632]
[1736108353196,0.60665,98671.0,98670.0,0.11390632]
[1736108353858,0.60665,98671.0,98670.0,0.10398632]
[1736108354346,0.60665,98671.0,98670.0,0.11390632]
[1736108354595,0.282426,98670.0,98669.0,0.03]
[1736108354817,0.282426,98670.0,98640.0,0.08933108]
[1736108354818,0.1,98642.0,98640.0,0.08933108]
[1736108355088,0.60665,98642.0,98641.0,0.19380954]
[1736108355295,0.60665,98642.0,98641.0,0.20372954]
[1736108355501,0.60665,98642.0,98641.0,0.08982322]
[1736108355708,0.73325,98642.0,98641.0,0.08982322]
[1736108355918,0.532485,98638.0,98637.0,0.05589663]
[1736108356138,0.532485,98638.0,98633.0,0.17866217]
[1736108356139,0.1,98634.0,98633.0,0.17866217]
[1736108356365,0.60665,98634.0,98633.0,0.11439981]
[1736108356782,0.50665,98634.0,98633.0,0.11439981]
[1736108357905,0.60665,98634.0,98633.0,0.10447981]
[1736108358018,0.60665,98634.0,98633.0,0.11439981]
[1736108359142,0.50665,98634.0,98633.0,0.11439981]
[1736108359923,0.60665,98634.0,98633.0,0.11439981]
[1736108361396,0.60665,98634.0,98633.0,0.10447981]
[1736108361819,0.60665,98634.0,98633.0,0.11439981]
[1736108362233,0.60665,98634.0,98633.0,0.10447981]
[1736108362622,0.60665,98634.0,98633.0,0.11439981]
[1736108362897,0.60665,98634.0,98633.0,0.10447981]
[1736108364864,0.60665,98634.0,98604.0,0.5436]
[1736108364865,0.1,98592.0,98567.0,0.1]
[1736108365068,0.1,98592.0,98591.0,0.10398632]
[1736108365069,0.50665,98592.0,98591.0,0.10398632]
[1736108366865,0.50665,98592.0,98591.0,0.11390632]
[1736108368087,0.50665,98592.0,98591.0,0.10398632]
[1736108368489,0.50665,98592.0,98591.0,0.11390632]
[1736108369098,0.50665,98592.0,98591.0,0.10398632]
[1736108369429,0.60169,98592.0,98591.0,0.10398632]
[1736108369839,0.60169,98592.0,98591.0,0.11390632]
[1736108373038,0.60169,98592.0,98591.0,0.10398632]
[1736108373239,0.60169,98592.0,98591.0,0.11390632]
[1736108374145,0.60169,98592.0,98591.0,0.10398632]
[1736108374318,0.1,98589.0,98588.0,0.01058387]
[1736108374520,0.60169,98589.0,98588.0,0.11457019]
[1736108374875,0.60169,98589.0,98588.0,0.10465019]
[1736108375670,0.60169,98589.0,98588.0,0.11433019]
[1736108376076,0.59669,98589.0,98588.0,0.11433019]
[1736108376288,0.59669,98589.0,98588.0,0.10465019]
[1736108376683,0.59669,98589.0,98588.0,0.11433019]
[1736108376913,0.59669,98589.0,98588.0,0.10465019]
[1736108377075,0.59669,98589.0,98588.0,0.11433019]
[1736108377277,0.59669,98589.0,98588.0,0.10465019]
[1736108377478,0.59669,98589.0,98588.0,0.00066387]
[1736108384074,0.69669,98589.0,98588.0,0.00066387]
[1736108384710,0.59669,98589.0,98588.0,0.00066387]
[1736108384862,0.69669,98589.0,98588.0,0.00066387]
[1736108385695,0.59669,98589.0,98588.0,0.00066387]
[1736108385899,0.69669,98589.0,98588.0,0.00066387]
[1736108386515,0.59669,98589.0,98588.0,0.00066387]
[1736108386736,0.69669,98589.0,98588.0,0.00066387]
[1736108388092,0.095,98581.0,98580.0,0.0001702]
[1736108388270,0.77928,98581.0,98580.0,0.00066434]
[1736108389478,0.87928,98581.0,98580.0,0.00066434]
[1736108389820,0.91297579,98581.0,98580.0,0.00066434]
[1736108390551,0.98326632,98581.0,98580.0,0.00066434]
[1736108390760,1.31706658,98581.0,98580.0,0.00066434]
[1736108390959,1.37357038,98581.0,98580.0,0.00066434]
[1736108391131,1.4775567,98581.0,98580.0,0.00066434]
[1736108391328,1.44784843,98581.0,98580.0,0.00066434]
[1736108391574,1.41415264,98581.0,98580.0,0.00066434]
[1736108391901,1.47264877,98581.0,98580.0,0.00066434]
[1736108392103,1.44541617,98581.0,98580.0,0.00066434]
[1736108392249,1.47264877,98581.0,98580.0,0.00066434]
[1736108393529,0.095,98549.0,98548.0,0.0001702]
[1736108393742,0.095,98549.0,98548.0,0.00066459]
[1736108393942,0.59669,98549.0,98548.0,0.00066459]
[1736108394598,0.59669,98549.0,98548.0,0.10465091]
[1736108394847,0.50169,98549.0,98548.0,0.15425091]
[1736108395053,0.50169,98549.0,98548.0,0.22935091]
[1736108396287,0.48545985,98549.0,98548.0,0.92295091]
[1736108396492,0.29647785,98549.0,98548.0,1.02295091]
[1736108397745,8.51e-05,98592.0,98587.0,0.182579]
[1736108397951,8.51e-05,98592.0,98588.0,0.11366632]
[1736108398361,0.5072451,98589.0,98588.0,0.11366632]
[1736108399135,0.5072451,98589.0,98588.0,0.11416071]
[1736108399546,0.5072451,98589.0,98588.0,0.65776071]
[1736108401083,0.5072451,98589.0,98588.0,0.65724071]
[1736108401285,0.5072451,98589.0,98588.0,0.80724071]
[1736108402859,0.5072451,98589.0,98588.0,0.64808071]
[1736108403067,0.5072451,98589.0,98588.0,0.65724071]
[1736108403429,0.5072451,98589.0,98588.0,0.11364071]
[1736108403430,0.6022451,98589.0,98588.0,0.11364071]
[1736108403845,0.6022451,98589.0,98588.0,0.00049439]
[1736108415931,0.6022451,98589.0,98587.0,0.03]
[1736108415932,0.377578,98588.0,98587.0,0.00801449]
[1736108416090,0.88523218,98588.0,98587.0,0.00801449]
[1736108417354,1.02081193,98588.0,98587.0,0.00801449]
[1736108417938,0.277611,98570.0,98569.0,0.00916]
[1736108418139,0.784771,98570.0,98569.0,0.00916]
[1736108418728,0.784771,98570.0,98554.0,0.18264]
[1736108418929,0.095,98556.0,98555.0,0.11314632]
[1736108419304,0.50716,98556.0,98555.0,0.11314632]
[1736108420267,0.50765388,98556.0,98555.0,0.11314632]
[1736108421769,0.50765388,98556.0,98555.0,0.10398632]
[1736108421973,0.50765388,98556.0,98555.0,0.11314632]
[1736108423998,0.60265388,98556.0,98555.0,0.10398632]
[1736108424201,0.60265388,98556.0,98555.0,0.11314632]
[1736108424811,0.60265388,98556.0,98555.0,0.20398632]
[1736108425014,0.60265388,98556.0,98555.0,0.21314632]
[1736108425652,0.60265388,98556.0,98555.0,0.20398632]
[1736108425831,0.60265388,98556.0,98555.0,0.21314632]
[1736108426449,0.50765388,98556.0,98555.0,0.21314632]
[1736108428362,0.50765388,98556.0,98555.0,0.90674632]
[1736108429617,0.095,98588.0,98563.0,0.1]
[1736108429799,0.09101019,98589.0,98587.0,0.28656532]
[1736108430037,8.51e-05,98589.0,98588.0,0.10398632]
[1736108430459,8.51e-05,98589.0,98588.0,0.11282632]
[1736108430664,0.5072451,98589.0,98588.0,0.11282632]
[1736108430869,0.5072451,98589.0,98588.0,0.13344906]
[1736108431046,0.5072451,98589.0,98588.0,0.14364001]
[1736108431284,0.5072451,98589.0,98588.0,0.83724001]
[1736108431485,0.5072451,98589.0,98588.0,0.82709823]
[1736108431868,0.5072451,98589.0,98588.0,0.81825823]
[1736108432101,0.5072451,98589.0,98588.0,0.82709823]
[1736108432277,0.5072451,98589.0,98588.0,0.81825823]
[1736108432496,0.5072451,98589.0,98588.0,0.82709823]
[1736108433291,0.6022451,98589.0,98588.0,0.65647549]
[1736108434174,0.5072451,98589.0,98588.0,0.80647549]
[1736108437319,0.5072451,98589.0,98588.0,0.81678452]
[1736108438065,0.5072451,98589.0,98588.0,0.92358452]
[1736108438276,0.5072451,98589.0,98588.0,0.80794452]
[1736108438494,0.5072451,98589.0,98588.0,0.81678452]
[1736108439106,0.5072451,98589.0,98588.0,0.80794452]
[1736108439313,0.5072451,98589.0,98588.0,0.81678452]
[1736108440322,0.5072451,98589.0,98588.0,0.80794452]
[1736108440518,0.5072451,98589.0,98588.0,0.81678452]
[1736108440716,0.5072451,98589.0,98588.0,0.27318452]
[1736108442577,0.5072451,98589.0,98588.0,0.26434452]
[1736108442793,0.5072451,98589.0,98588.0,0.27318452]
[1736108443302,0.5072451,98589.0,98588.0,0.12318452]
[1736108443524,0.6022451,98589.0,98588.0,0.11287549]
[1736108443725,0.6022451,98589.0,98588.0,0.10403549]
[1736108443895,0.6022451,98589.0,98588.0,0.11287549]
[1736108444491,0.6022451,98589.0,98588.0,0.10403549]
[1736108444700,0.6503451,98589.0,98588.0,0.11287549]
[1736108445706,0.6503451,98589.0,98588.0,0.10403549]
[1736108445916,0.6503451,98589.0,98588.0,0.11287549]
[1736108451635,0.6503451,98589.0,98588.0,0.10403549]
[1736108451843,0.6503451,98589.0,98588.0,0.00888917]
[1736108453248,0.7303451,98589.0,98588.0,4.917e-05]
[1736108455798,0.7303451,98589.0,98588.0,0.00888917]
[1736108458173,0.7303451,98589.0,98588.0,4.917e-05]
[1736108460706,0.93433142,98589.0,98588.0,4.917e-05]
[1736108460912,0.095,98557.0,98554.0,0.18264]
[1736108461151,0.60216,98557.0,98556.0,0.1126065]
[1736108465197,0.60216,98557.0,98556.0,0.00022018]
[1736108465826,0.60216,98557.0,98556.0,0.00862018]
[1736108466034,0.60216,98557.0,98556.0,0.00022018]
[1736108468355,0.60216,98557.0,98556.0,0.1042065]
[1736108468568,0.60216,98557.0,98556.0,0.00022018]
[1736108468814,0.60216,98557.0,98556.0,0.1042065]
[1736108469867,0.50716,98557.0,98556.0,0.1042065]
[1736108470116,0.50716,98557.0,98556.0,0.2542065]
[1736108470969,0.50716,98557.0,98556.0,0.27425751]
[1736108471389,8.54e-05,98587.0,98556.0,0.27425751]
[1736108471390,8.54e-05,98587.0,98586.0,0.182581]
[1736108471594,0.0950854,98587.0,98586.0,0.29496732]
[1736108471798,0.6022554,98587.0,98586.0,0.29496732]
[1736108472518,0.6022554,98587.0,98586.0,0.2950165]
[1736108475546,0.6022554,98587.0,98586.0,0.2866165]
[1736108475747,0.6022554,98587.0,98586.0,0.2950165]
[1736108475956,0.6022554,98587.0,98586.0,4.918e-05]
[1736108476475,0.6022554,98587.0,98586.0,0.00844918]
[1736108478361,0.6022554,98587.0,98586.0,4.918e-05]
[1736108478561,0.6022554,98587.0,98586.0,0.00844918]
[1736108478754,0.6022554,98587.0,98586.0,4.918e-05]
[1736108479056,0.6779554,98587.0,98586.0,0.00844918]
[1736108479363,0.6779554,98587.0,98586.0,4.918e-05]
[1736108479537,0.6779554,98587.0,98586.0,0.00844918]
[1736108480130,0.6779554,98587.0,98586.0,4.918e-05]
[1736108480986,0.6779554,98587.0,98586.0,0.00844918]
[1736108481627,0.6779554,98587.0,98586.0,4.918e-05]
[1736108482028,0.8264554,98587.0,98586.0,4.918e-05]
[1736108486863,0.7264554,98587.0,98586.0,4.918e-05]
[1736108487089,0.6314554,98587.0,98586.0,4.918e-05]
[1736108487288,0.6022554,98587.0,98586.0,0.1040355]
[1736108488126,0.5072554,98587.0,98586.0,0.1040355]
[1736108488323,0.6022554,98587.0,98586.0,0.1040355]
[1736108490589,0.6022554,98587.0,98586.0,0.2540355]
[1736108490590,0.4666814,98587.0,98586.0,0.2540355]
[1736108490797,0.43982426,98587.0,98586.0,0.3540355]
[1736108491023,0.37177066,98587.0,98586.0,0.3540355]
[1736108491229,0.37177066,98587.0,98586.0,0.38263326]
[1736108491868,0.37177066,98587.0,98586.0,0.39296616]
[1736108493160,0.07551455,98587.0,98586.0,0.82844616]
[1736108493356,0.095,98627.0,98612.0,0.1]
[1736108493576,0.1725851,98642.0,98641.0,0.182479]
[1736108493756,0.1725851,98642.0,98641.0,0.29458532]
[1736108493928,0.6019751,98642.0,98641.0,0.29458532]
[1736108494135,0.5069751,98642.0,98641.0,0.29458532]
[1736108494359,0.6019751,98642.0,98641.0,0.29458532]
[1736108494881,0.6019751,98642.0,98641.0,0.2946345]
[1736108495116,0.6019751,98642.0,98641.0,0.1040355]
[1736108495296,0.6019751,98642.0,98641.0,0.00816918]
[1736108495936,0.6019751,98642.0,98641.0,4.918e-05]
[1736108496151,0.6019751,98642.0,98641.0,0.00816918]
[1736108497900,0.7794751,98642.0,98641.0,4.918e-05]
[1736108498114,0.8289751,98642.0,98641.0,0.00816918]
[1736108500693,0.8289751,98642.0,98641.0,4.918e-05]
[1736108501568,0.8289751,98642.0,98638.0,0.00812]
[1736108501841,0.195,98639.0,98638.0,0.00816927]
[1736108502089,0.78349,98639.0,98638.0,4.927e-05]
[1736108502782,0.377498,98631.0,98630.0,0.00812]
[1736108503003,0.095,98602.0,98601.0,0.18260227]
[1736108503237,0.60189,98602.0,98601.0,0.28658859]
[1736108503478,0.60189,98602.0,98601.0,0.29470859]
[1736108503713,0.60189,98602.0,98601.0,0.11215559]
[1736108504843,0.6019754,98602.0,98601.0,0.11215559]
[1736108505559,0.6019754,98602.0,98601.0,4.927e-05]
[1736108506272,0.6019754,98602.0,98601.0,0.00816927]
[1736108506904,0.6019754,98602.0,98601.0,4.927e-05]
[1736108507076,0.6019754,98602.0,98601.0,0.00816927]
[1736108511390,0.6019754,98602.0,98601.0,4.927e-05]
[1736108511806,0.6019754,98602.0,98601.0,0.00816927]
[1736108512354,0.7019754,98602.0,98601.0,0.00816927]
[1736108512576,0.7847754,98602.0,98601.0,0.00816927]
[1736108513590,0.6847754,98602.0,98601.0,0.00816927]
[1736108514603,0.5897754,98602.0,98601.0,0.00816927]
[1736108514806,0.6847754,98602.0,98601.0,0.00816927]
[1736108517296,0.6847754,98602.0,98601.0,0.00834007]
[1736108519755,0.7847754,98602.0,98601.0,0.00834007]
[1736108519997,0.7847754,98602.0,98601.0,0.00022007]
[1736108520203,0.7847754,98602.0,98601.0,0.00834007]
[1736108520580,0.7847754,98602.0,98601.0,0.00022007]
[1736108520753,0.7847754,98602.0,98601.0,0.00814007]
[1736108521620,0.7847754,98602.0,98601.0,0.00022007]
[1736108524382,0.68191601,98602.0,98601.0,0.00022007]
[1736108526226,0.78191601,98602.0,98601.0,0.00022007]
[1736108526597,0.78191601,98602.0,98601.0,0.00814007]
[1736108527239,0.78191601,98602.0,98601.0,0.00022007]
[1736108527415,0.78191601,98602.0,98601.0,0.00814007]
[1736108528645,0.78191601,98602.0,98601.0,0.00022007]
[1736108530214,0.88191601,98602.0,98601.0,0.00022007]
[1736108530560,1.03250233,98602.0,98601.0,0.00022007]
[1736108531786,1.18250233,98602.0,98601.0,0.00022007]
[1736108532226,0.195,98587.0,98586.0,0.0001708]
[1736108532430,1.11069593,98587.0,98586.0,0.00022007]
[1736108533264,1.36069593,98587.0,98586.0,0.00022007]
[1736108533854,1.39229342,98587.0,98586.0,0.00022007]
[1736108534259,1.39229342,98587.0,98557.0,0.000171]
[1736108534260,0.095,98558.0,98557.0,0.000171]
[1736108534462,0.59903061,98558.0,98557.0,0.0081403]
[1736108536123,0.67603061,98558.0,98557.0,0.0081403]
[1736108537022,0.67603061,98558.0,98557.0,0.0002203]
[1736108537254,0.77603061,98558.0,98557.0,0.0002203]
[1736108537478,0.82113061,98558.0,98557.0,0.0002203]
[1736108540132,1.07511693,98558.0,98557.0,0.0002203]
[1736108540351,1.17511693,98558.0,98557.0,0.0002203]
[1736108540761,1.18519504,98558.0,98557.0,0.0002203]
[1736108542886,1.2055679,98558.0,98557.0,0.0002203]
[1736108543974,0.627648,98550.0,98549.0,0.0001704]
[1736108544222,1.31706493,98550.0,98549.0,0.00021971]
[1736108545587,1.31706493,98550.0,98504.0,0.182733]
[1736108545856,0.095,98505.0,98504.0,0.17690699]
[1736108546060,0.59903061,98505.0,98504.0,0.28881331]
[1736108548557,0.59903061,98505.0,98504.0,0.27381331]
[1736108554324,0.59903061,98505.0,98504.0,0.27398411]
[1736108556163,0.50403061,98505.0,98504.0,0.27398411]
[1736108556389,0.50403061,98505.0,98504.0,0.42398411]
[1736108556606,0.42393061,98505.0,98504.0,0.42398411]
[1736108556817,0.095,98546.0,98545.0,0.182656]
[1736108557049,0.095,98546.0,98545.0,0.29432232]
[1736108557050,0.60238,98546.0,98545.0,0.29432232]
[1736108558118,0.60238,98546.0,98545.0,0.2948162]
[1736108559259,0.50738,98546.0,98545.0,0.2948162]
[1736108560306,0.60238,98546.0,98545.0,0.2948162]
[1736108564853,0.2259286,98546.0,98545.0,1.57020095]
[1736108565077,0.01443012,98546.0,98545.0,1.41955895]
[1736108565702,0.01443012,98546.0,98545.0,1.30090095]
[1736108565902,0.01443012,98546.0,98545.0,1.41305095]
[1736108566117,0.01451552,98546.0,98545.0,1.41305095]
[1736108567487,0.01451552,98546.0,98545.0,1.40537095]
[1736108567709,0.01451552,98546.0,98545.0,1.41305095]
[1736108568160,0.01451552,98546.0,98545.0,1.42313735]
[1736108568432,5.2e-07,98546.0,98545.0,1.42313735]
[1736108568677,5.2e-07,98546.0,98545.0,1.31098735]
[1736108568937,0.40590552,98546.0,98545.0,1.31098735]
[1736108569181,0.40590552,98546.0,98545.0,1.54212535]
[1736108569418,0.40590552,98546.0,98545.0,1.48512435]
[1736108569905,0.34502052,98546.0,98545.0,1.31098735]
[1736108570496,0.34502052,98546.0,98545.0,1.1581826]
[1736108570694,0.32472552,98546.0,98545.0,1.3835206]
[1736108570895,0.32472552,98546.0,98545.0,1.3758406]
[1736108571056,0.32472552,98546.0,98545.0,1.3681206]
[1736108571909,0.30443052,98546.0,98545.0,1.3681206]
[1736108572112,0.28413552,98546.0,98545.0,1.3681206]
[1736108572320,0.22325052,98546.0,98545.0,1.8681206]
[1736108573291,0.18266052,98546.0,98545.0,1.8681206]
[1736108573525,0.12177552,98546.0,98545.0,1.8681206]
[1736108573675,0.10148052,98546.0,98545.0,1.8681206]
[1736108574643,0.04059552,98546.0,98545.0,1.8681206]
[1736108574882,5.52e-06,98546.0,98545.0,1.8731206]
[1736108575522,5.52e-06,98546.0,98545.0,2.02508566]
[1736108578114,5.52e-06,98546.0,98545.0,2.02525646]
[1736108578326,9.092e-05,98546.0,98545.0,2.02525646]
[1736108578548,9.092e-05,98546.0,98545.0,1.93379346]
[1736108578915,9.2e-07,98546.0,98545.0,1.93879346]
[1736108579127,0.48708592,98546.0,98545.0,1.81531846]
[1736108579331,0.44649592,98546.0,98545.0,2.04263946]
[1736108579537,0.44649592,98546.0,98545.0,1.81031846]
[1736108580677,0.44649592,98546.0,98545.0,1.4909934]
[1736108580878,0.44649592,98546.0,98545.0,1.4984734]
[1736108581119,0.44649592,98546.0,98545.0,1.5984734]
[1736108584020,0.44649592,98546.0,98545.0,1.5909934]
[1736108584203,0.44649592,98546.0,98545.0,1.5984734]
[1736108584746,0.44649592,98546.0,98545.0,1.4984734]
[1736108590506,0.44658132,98546.0,98545.0,1.4984734]
[1736108590916,0.44658132,98546.0,98545.0,1.3158174]
[1736108591688,0.44658132,98546.0,98545.0,0.9548734]
[1736108592017,0.58678132,98546.0,98545.0,0.9548734]
[1736108593180,0.58678132,98546.0,98545.0,0.9473934]
[1736108593426,0.58678132,98546.0,98545.0,0.9548734]
[1736108596254,0.58678132,98546.0,98545.0,0.9473934]
[1736108596453,0.58678132,98546.0,98545.0,0.9548734]
[1736108599936,0.58678132,98546.0,98545.0,0.944787]
[1736108600145,0.58678132,98546.0,98545.0,0.612131]
[1736108600560,0.58678132,98546.0,98545.0,0.604651]
[1736108600767,0.58678132,98546.0,98545.0,0.612131]
[1736108601799,0.66298132,98546.0,98545.0,0.50066468]
[1736108602003,0.66298132,98546.0,98545.0,0.50814468]
[1736108602419,0.66298132,98546.0,98545.0,0.50066468]
[1736108602623,0.66298132,98546.0,98545.0,0.50814468]
[1736108604154,0.66298132,98546.0,98545.0,0.50066468]
[1736108604361,0.66298132,98546.0,98545.0,0.50818468]
[1736108607695,0.66298132,98546.0,98545.0,0.00818468]
[1736108608823,0.76298132,98546.0,98545.0,0.00818468]
[1736108609441,0.095,98527.0,98526.0,0.05968]
[1736108609771,0.66659592,98527.0,98526.0,0.0672]
[1736108610693,0.66659592,98527.0,98526.0,0.06704]
[1736108611717,0.57159592,98527.0,98526.0,0.17102632]
[1736108612039,0.66659592,98527.0,98526.0,0.17102632]
[1736108614420,0.66659592,98527.0,98526.0,0.05968]
[1736108614800,0.66659592,98527.0,98526.0,0.06704]
[1736108616053,0.84928692,98527.0,98526.0,0.06704]
[1736108616819,0.84928692,98527.0,98526.0,0.05968]
[1736108617024,0.1728,98505.0,98504.0,0.0001708]
[1736108617389,0.61929592,98505.0,98504.0,0.0075308]
[1736108618642,0.6197897,98505.0,98504.0,0.0075308]
[1736108618849,0.6197897,98505.0,98504.0,0.11151712]
[1736108619054,0.5419897,98505.0,98504.0,0.11151712]
[1736108620239,0.5419897,98505.0,98504.0,0.10415712]
[1736108620450,0.5419897,98505.0,98504.0,0.11151712]
[1736108624418,0.5419897,98505.0,98504.0,0.10415712]
[1736108624613,0.5419897,98505.0,98504.0,0.11151712]
[1736108625266,0.4469897,98505.0,98504.0,0.26151712]
[1736108625652,0.4469897,98505.0,98504.0,0.80511712]
[1736108628739,0.4369897,98505.0,98504.0,0.80511712]
[1736108631097,0.4369897,98505.0,98504.0,0.79775712]
[1736108631303,0.182676,98536.0,98504.0,0.79775712]
[1736108631304,8.54e-05,98545.0,98532.0,0.155]
[1736108631639,8.54e-05,98545.0,98544.0,0.28664532]
[1736108631817,0.5075054,98545.0,98544.0,0.28664532]
[1736108633123,0.6025054,98545.0,98544.0,0.28664532]
[1736108633337,0.6809054,98545.0,98544.0,0.11134632]
[1736108634418,0.7293054,98545.0,98544.0,0.11134632]
[1736108634839,0.7293054,98545.0,98544.0,0.10398632]
[1736108635014,0.7293054,98545.0,98544.0,0.11134632]
[1736108635226,0.7293054,98545.0,98544.0,0.10398632]
[1736108635361,0.7293054,98545.0,98544.0,0.11134632]
[1736108640541,0.5075054,98545.0,98544.0,0.26134632]
[1736108640743,0.5075054,98545.0,98544.0,0.32102632]
[1736108641332,0.5075054,98545.0,98544.0,0.33108203]
[1736108641829,0.5075054,98545.0,98544.0,1.39324626]
[1736108641830,0.34349734,98545.0,98544.0,1.39324626]
[1736108642072,0.095,98578.0,98545.0,0.437657]
[1736108642262,0.095,98578.0,98545.0,1.08443055]
[1736108642467,0.5074654,98546.0,98545.0,1.08443055]
[1736108642699,0.095,98578.0,98551.0,0.15]
[1736108642890,0.095,98578.0,98577.0,0.182598]
[1736108643047,0.60228,98578.0,98577.0,0.29382432]
[1736108644095,0.50728,98578.0,98577.0,0.31682432]
[1736108644315,0.50728,98578.0,98577.0,0.31687363]
[1736108647379,0.50728,98578.0,98577.0,0.46687363]
[1736108648239,0.50728,98578.0,98577.0,0.48680731]
[1736108648450,0.50728,98578.0,98577.0,0.71481507]
[1736108649050,0.50728,98578.0,98577.0,0.70757507]
[1736108649252,0.50728,98578.0,98577.0,0.71481507]
[1736108649463,0.5073654,98578.0,98577.0,0.71481507]
[1736108651876,0.5073654,98578.0,98577.0,0.70757507]
[1736108652212,0.4824654,98578.0,98577.0,0.71481507]
[1736108652626,0.4824654,98578.0,98577.0,1.21481507]
[1736108653793,0.4824654,98578.0,98577.0,1.20757507]
[1736108654001,0.4824654,98578.0,98577.0,1.21481507]
[1736108654433,0.4824654,98578.0,98577.0,1.24816507]
[1736108654652,0.4824654,98578.0,98577.0,1.21481507]
[1736108654863,0.4824654,98578.0,98577.0,0.98680731]
[1736108660868,0.6249654,98578.0,98577.0,0.95656731]
[1736108661071,0.6249654,98578.0,98577.0,0.94387363]
[1736108661283,0.6249654,98578.0,98577.0,0.96687363]
[1736108661666,0.6249654,98578.0,98577.0,0.96704443]
[1736108662429,0.7039654,98578.0,98577.0,0.81704443]
[1736108662663,0.7039654,98578.0,98577.0,0.80980443]
[1736108662858,0.7039654,98578.0,98577.0,0.81704443]
[1736108663751,0.7039654,98578.0,98577.0,0.63444643]
[1736108671242,0.7039654,98578.0,98577.0,0.13444643]
[1736108671647,0.7039654,98578.0,98577.0,0.03046011]
[1736108674686,0.7039654,98578.0,98577.0,0.00746011]
[1736108675137,0.7039654,98578.0,98575.0,1.0]
[1736108675456,0.7039654,98578.0,98575.0,1.00005026]
[1736108675457,0.1242,98576.0,98575.0,1.00005026]
[1736108675630,0.80158,98576.0,98575.0,1.00729026]
[1736108675832,0.80158,98576.0,98575.0,0.92919026]
[1736108676408,0.80158,98576.0,98575.0,0.74385026]
[1736108676611,0.80158,98576.0,98575.0,0.75109026]
[1736108681564,0.70158,98576.0,98575.0,0.75109026]
[1736108681968,0.65548,98576.0,98575.0,0.77409026]
[1736108682147,0.57738,98576.0,98575.0,0.77409026]
[1736108685516,0.57738,98576.0,98575.0,0.77426106]
[1736108689206,0.57738,98576.0,98575.0,0.76702106]
[1736108689426,0.57738,98576.0,98575.0,0.77426106]
[1736108693543,0.57738,98576.0,98575.0,0.74402106]
[1736108693790,0.57738,98576.0,98575.0,0.75126106]
[1736108694934,0.65458,98576.0,98575.0,0.74402106]
[1736108695126,0.65458,98576.0,98575.0,0.75126106]
[1736108696192,0.80526632,98576.0,98575.0,0.75126106]
[1736108696593,0.70128,98576.0,98575.0,0.75126106]
[1736108698413,0.7013654,98576.0,98575.0,0.75126106]
[1736108698561,0.7013654,98576.0,98575.0,0.74402106]
[1736108699153,0.69733289,98576.0,98575.0,0.74402106]
[1736108702493,0.57343289,98576.0,98575.0,0.76702106]
[1736108702702,0.57343289,98576.0,98575.0,0.77418106]
[1736108704429,0.47843289,98576.0,98575.0,1.11136738]
[1736108704671,0.47843289,98576.0,98575.0,1.16026738]
[1736108705747,0.47843289,98576.0,98575.0,1.38827514]
[1736108708670,0.47843289,98576.0,98575.0,1.16026738]
[1736108708869,0.47843289,98576.0,98575.0,1.17019085]